Cogmind - Beta 10.2 @@@ ROGUE MODE // 2021.10.11 @ 23:47:53 Player: AbstractArtist Result: Destroyed by G-34 Mercenary with Small Laser Performance ------------- Evolutions (1) 500 Regions Visited (3) 600 Robots Destroyed (22) 110 Value Destroyed (457) 457 Prototype IDs (4) 80 Alien Tech Used (0) 0 Bonus (50) 50 TOTAL SCORE: 1797 Bonus ------- Follower Combat Kills 50 Cogmind --------- Core Integrity 0/400 Matter 214/300 Energy 458/460 System Corruption 0% Temperature Cool (15) Movement Rolling (80) Location -9/Storage Parts ------- > --- POWER (2) -------- Heavy Ion Engine Cooled Ion Engine > --- PROPULSION (2) --- Wheel Wheel > --- UTILITY (2) ------ Small Storage Unit > --- WEAPON (3) ------- (None) > --- INVENTORY (6) ---- Aluminum Leg Heat Sink Peak State ------------ > --- POWER ------------ Ion Engine Improved Ion Engine > --- PROPULSION ------- Light Treads Light Treads > --- UTILITY ---------- Small Storage Unit Shield Generator > --- WEAPON ----------- Improved Light Cannon > --- INVENTORY -------- Aluminum Leg Aluminum Leg Wheel Wheel ECM Suite [Rating: 10] Favorites ----------- Power Ion Engine Engine Ion Engine Propulsion Aluminum Leg Treads Light Treads Leg Aluminum Leg Wheel Compact Wheel Flight Unit Flight Unit Utility Small Storage Unit Device ECM Suite Storage Small Storage Unit Protection Light Armor Plating Weapon Grenade Launcher Energy Gun Medium Laser Ballistic Gun Light Assault Rifle Ballistic Cannon Improved Light Cannon Launcher Grenade Launcher Build | -11 -10 -9 -9 ------- Run | Scr Mat Mat Sto Slots Evolved 2 | . . 2 . Power 1 | . . 1 . Propulsion . | . . . . Utility . | . . . . Weapon 1 | . . 1 . Parts Attached 31 | 6 3 17 5 Power 6 | 1 . 3 2 Engine 6 | 1 . 3 2 Core . | . . . . Reactor . | . . . . Propulsion 10 | 2 . 6 2 Treads 2 | . . 2 . Leg 3 | 1 . 2 . Wheel 3 | 1 . . 2 Hover . | . . . . Flight 2 | . . 2 . Utility 7 | 1 1 4 1 Device 4 | . 1 3 . Storage 2 | 1 . . 1 Processor . | . . . . Hackware . | . . . . Protection 1 | . . 1 . Artifact . | . . . . Weapon 8 | 2 2 4 . Energy Gun 4 | 2 1 1 . Energy Cannon . | . . . . Ballistic Gun 2 | . . 2 . Ballistic Cannon 1 | . . 1 . Launcher 1 | . 1 . . Special Weapon . | . . . . Impact Weapon . | . . . . Slashing Weapon . | . . . . Piercing Weapon . | . . . . Special Melee Weapon . | . . . . Unidentified Prototypes 2 | . . . 2 Parts Lost 20 | . 3 16 1 Power 4 | . . 4 . Propulsion 6 | . 1 5 . Utility 3 | . . 2 1 Weapon 7 | . 2 5 . Highest Loss Streak 8 | . 2 8 1 Average Slot Usage (%) 71 | . 87 65 58 Engine 15 | . 14 16 17 Treads 4 | . . 8 . Leg 8 | . 14 7 . Wheel 4 | . 6 . 22 Device 9 | . 12 9 . Storage 12 | . 14 11 19 Energy Gun 4 | . 13 . . Ballistic Gun 1 | . . 2 . Ballistic Cannon 3 | . . 5 . Launcher 4 | . 12 1 . Naked Turns . | . . . . Heaviest Build 23 | 12 15 23 21 Greatest Support 40 | 16 10 40 20 Greatest Overweight (x) 2 | 1 1 2 1 Average Overweight (x) . | . 1 . . Largest Inventory Capacity 6 | 6 6 6 6 Average Capacity 5 | 5 6 6 6 Most Carried 6 | 4 6 6 3 Average Carried 4 | 3 4 4 2 Final Capacity 6 | 6 6 6 6 Final Carried 4 | 4 4 4 2 Class Distribution -------------------- 94% | Mutant 5% | Scavenger-Mutant Dominant Class ---------------- Mutant | -10/Materials Mutant | -9/Materials Mutant | -9/Storage Resources | -11 -10 -9 -9 ----------- Run | Scr Mat Mat Sto Matter Collected 518 | 136 53 279 50 Remotely . | . . . . Salvage Created 473 | . 194 279 . Parts 40 | . 20 20 . Haulers Intercepted . | . . . . Recyclers Shooed 1 | . 1 . . Parts Field Recycled . | . . . . Retrieved Matter . | . . . . Parts Self-Destructed . | . . . . Prevented . | . . . . Kills | -11 -10 -9 -9 ------- Run | Scr Mat Mat Sto Combat Hostiles Destroyed 14 | . 6 8 . Melee 1 | . . 1 . Guns 3 | . 1 2 . Cannons 5 | . . 5 . AOE 5 | . 5 . . Classes Destroyed 9 | . 6 3 . Worker 2 | . 1 1 . Builder 2 | . 2 . . Recycler 1 | . 1 . . Watcher 3 | . 2 1 . Swarmer 6 | . 3 3 . Grunt 5 | . 3 2 . Brawler 1 | . . 1 . Duelist 1 | . . 1 . Sentry 1 | . . 1 . Best Kill Streak 5 | . 5 4 . Combat Bots Only 4 | . 4 3 . Max Kills in Single Turn 3 | . 3 1 . Gunslinging . | . . . . Exploded 2 | . 2 . . Melee 1 | . . 1 . Uniques/NPCs Destroyed . | . . . . Combat | -11 -10 -9 -9 -------- Run | Scr Mat Mat Sto Damage Taken 1797 | 3 277 1476 41 Core 445 | 3 31 399 12 Absorbed by Shields 117 | . . 117 . Core Remaining (%) 92 | 98 86 . . Volleys Fired 67 | 3 17 47 . Largest 2 | 2 2 2 . Hottest 95 | 90 80 95 . Shots Fired 85 | 6 27 52 . Gun 39 | 6 15 18 . Cannon 33 | . . 33 . Launcher 13 | . 12 1 . Special . | . . . . Kinetic 39 | . . 39 . Thermal 33 | 6 15 12 . Explosive 13 | . 12 1 . Electromagnetic . | . . . . Robot Hit Streak 7 | 6 2 7 . Robot Miss Streak 7 | . 1 7 . Penetration Max . | . . . . Secondary Targets . | . . . . Shots Hit Robots 36 | 6 5 25 . Core Hits 39 | 1 18 20 . Critical Hits 1 | . . 1 . Critical Kills 1 | . . 1 . Critical Parts Destroyed . | . . . . Melee Attacks . | . . . . Impact . | . . . . Slashing . | . . . . Piercing . | . . . . Sneak Attacks . | . . . . Combat Hostiles . | . . . . Follow-up Attacks . | . . . . Damage Inflicted 1253 | 76 635 542 . Guns 200 | 70 49 81 . Cannons 382 | . . 382 . Explosions 624 | . 586 38 . Melee . | . . . . Ramming 47 | 6 . 41 . Kinetic 420 | . . 420 . Thermal 162 | 70 49 43 . Explosive 624 | . 586 38 . Electromagnetic . | . . . . Impact . | . . . . Slashing . | . . . . Piercing . | . . . . Highest Corruption . | . . . . Average Corruption . | . . . . Corruption Purged . | . . . . Overload Shots . | . . . . Overflow Damage 42 | . 31 11 . Projectiles 1 | . . 1 . Explosions 41 | . 31 10 . Melee . | . . . . Knockbacks 2 | . . 2 . Impact . | . . . . Kinetic 2 | . . 2 . Secondary . | . . . . Self-Inflicted Damage 126 | 3 84 39 . Shots 5 | . 4 1 . Rammed 18 | 1 . 17 . Targets Rammed 21 | 2 . 19 . Kicked 2 | 1 . 1 . Crushed 1 | . . 1 . Highest Temperature 266 | 60 74 266 . Average Temperature 54 | 27 32 68 . Received Heat Transfer 504 | . 87 396 21 Siege Activations . | . . . . Robots Corrupted . | . . . . Combat Hostiles . | . . . . Parts Fried . | . . . . Impact Corruptions . | . . . . Robots Melted . | . . . . Combat Hostiles . | . . . . Parts Melted 1 | . 1 . . Heat Transferred 445 | 186 148 111 . Parts Sabotaged . | . . . . Parts Stolen . | . . . . Parts Stripped . | . . . . Power Chain Reactions . | . . . . Missiles Intercepted . | . . . . Alert | -11 -10 -9 -9 ------- Run | Scr Mat Mat Sto Peak Influence 327 | . 214 327 74 Initial 85 | . . 85 1 Average 125 | . 119 190 12 Maximum Alert Level 1 | . 1 1 . Low Security (%) 76 | 100 89 57 100 Level 1 23 | . 10 42 . Level 2 . | . . . . Level 3 . | . . . . Level 4 . | . . . . Level 5 . | . . . . High Security . | . . . . Max Security . | . . . . Squads Dispatched 8 | . 3 1 4 Investigation 2 | . 1 . 1 Extermination . | . . . . Reinforcement 4 | . 2 1 1 Assault 2 | . . . 2 Garrison . | . . . . Intercept . | . . . . Construction Impeded 1 | . . 1 . Haulers Reinforced . | . . . . Stealth | -11 -10 -9 -9 --------- Run | Scr Mat Mat Sto Distress Signals 4 | . . 4 . Communications Jammed . | . . . . Distress Signals . | . . . . Times Spotted 40 | . 13 17 10 Peak Tracking Total 7 | . 5 7 4 Tactical Retreats 4 | . 1 3 . Traps | -11 -10 -9 -9 ------- Run | Scr Mat Mat Sto Traps Triggered . | . . . . Indirectly . | . . . . Trap Hack Attempts . | . . . . Triggered . | . . . . Disarmed . | . . . . Reprogrammed . | . . . . Reused . | . . . . Traps Extracted . | . . . . Installed . | . . . . Triggered . | . . . . Machines | -11 -10 -9 -9 ---------- Run | Scr Mat Mat Sto Machines Disabled 2 | . . 2 . Max in Single Turn 2 | . . 2 . Machines Sabotaged . | . . . . Garrisons Compromised . | . . . . Overloaded Fab Kills . | . . . . Fab Network Shutdowns . | . . . . Hacking | -11 -10 -9 -9 --------- Run | Scr Mat Mat Sto Machines Accessed 4 | . 2 2 . Terminals 3 | . 1 2 . Fabricators . | . . . . Repair Stations . | . . . . Recycling Units 1 | . 1 . . Scanalyzers . | . . . . Garrison Access . | . . . . Total Hacks 16 | . 7 9 . Successful 11 | . 3 8 . Failed 5 | . 4 1 . Catastrophic 1 | . . 1 . Database Lockouts . | . . . . Manual 4 | . . . 4 Terminals 13 | . 4 9 . Fabricators . | . . . . Repair Stations . | . . . . Recycling Units 3 | . 3 . . Scanalyzers . | . . . . Garrison Access . | . . . . Terminal Hacks 10 | . 2 8 . Record 3 | . . 3 . Prototype ID Bank 1 | . 1 . . Alert Level 1 | . 1 . . Unreport Threat 2 | . . 2 . Assault Status 1 | . . 1 . Hauler Manifests 1 | . . 1 . Zone Layout 1 | . . 1 . Fabricator Hacks . | . . . . Repair Station Hacks . | . . . . Recycling Unit Hacks 1 | . 1 . . Process 1 | . 1 . . Scanalyzer . | . . . . Garrison Access Hacks . | . . . . Unauthorized Hacks . | . . . . Terminals . | . . . . Fabricators . | . . . . Repair Stations . | . . . . Recycling Units . | . . . . Scanalyzers . | . . . . Garrison Access . | . . . . Data Cores Recovered . | . . . . Used . | . . . . Hacking Detections 5 | . 2 2 1 Full Trace Events 5 | . 2 2 1 Feedback Events . | . . . . Feedback Blocked . | . . . . Robot Schematics Acquired . | . . . . Robots Built . | . . . . Matter . | . . . . Time . | . . . . Total Robot Build Rating . | . . . . Part Schematics Acquired . | . . . . Parts Built . | . . . . Matter . | . . . . Time . | . . . . Total Part Build Rating . | . . . . Parts Repaired . | . . . . Time . | . . . . Parts Recycled . | . . . . Recycled Matter . | . . . . Retrieved Matter . | . . . . Retrieved Components . | . . . . Parts Scanalyzed . | . . . . Part Schematics Acquired . | . . . . Parts Damaged . | . . . . Bothacking | -11 -10 -9 -9 ------------ Run | Scr Mat Mat Sto Used RIF Installer . | . . . . Robots Hacked . | . . . . Non-combat . | . . . . Combat . | . . . . Robot Hacks Applied . | . . . . Relay Couplers Released . | . . . . Robots Rewired . | . . . . Allies Hacked . | . . . . Hacks Repelled . | . . . . Allies | -11 -10 -9 -9 -------- Run | Scr Mat Mat Sto Total Allies 2 | . . . 2 Largest Group 2 | . . . 2 Highest-Rated Group 62 | . . . 62 Highest-Rated Ally 31 | . . . 31 Total Orders . | . . . . Ally Attacks 11 | . . . 11 Total Damage 164 | . . . 164 Kills 2 | . . . 2 Allies Corrupted . | . . . . Allies Melted . | . . . . Intel | -11 -10 -9 -9 ------- Run | Scr Mat Mat Sto Robot Analysis Total . | . . . . Derelict Logs Recovered . | . . . . Drone Launches . | . . . . Drone Recoveries . | . . . . Exploration | -11 -10 -9 -9 ------------- Run | Scr Mat Mat Sto Turns Passed 903 | 145 225 445 88 Spaces Moved 522 | 93 118 218 93 Core 61 | 19 . 42 . Treads 50 | . . 50 . Legs 303 | 72 118 113 . Wheels 95 | 2 . . 93 Hover . | . . . . Flight 13 | . . 13 . Fastest Speed 37 | 50 150 37 80 Average Speed 127 | 130 150 130 87 Slowest Speed 200 | 150 150 200 90 Overloaded Moves . | . . . . Propulsion Burnouts . | . . . . Robots Hopped . | . . . . Cave-ins Triggered . | . . . . Exploration Rate (%) 18 | 6 36 20 11 Regions Visited 3 Branch Regions 1 Pre-discovered Areas . | . . . . Known Exits Taken . | . . . . Unknown Exits Taken 3 | 1 1 1 . Scrap Searched . | . . . . Spaces Dug . | . . . . Terrain Destroyed 57 | . 56 1 . Melee . | . . . . Projectile 1 | . . 1 . AOE 56 | . 56 . . Terrain Rammed . | . . . . Walls Destroyed . | . . . . Machines Disabled . | . . . . Actions | -11 -10 -9 -9 --------- Run | Scr Mat Mat Sto Total 655 | 107 139 311 98 Wait . | . . . . Move 519 | 92 117 217 93 Hop . | . . . . Pick Up 15 | 4 2 9 . Fast Attach 14 | 6 . 5 3 Attach 11 | . 2 7 2 Detach . | . . . . Swap 6 | . 1 5 . Drop 2 | . . 2 . Fire 67 | 3 17 47 . Melee . | . . . . Ram 14 | . . 14 . Kick 4 | 2 . 2 . Crush 3 | . . 3 . Escape Stasis . | . . . . Rewire . | . . . . Trap . | . . . . Miscellaneous . | . . . . Route ------- -11/Scrapyard -10/Materials -9/Materials -9/Storage History --------- Turn | Location | Event 13 | -11/Scrapyard | Discovered new exit (range 14) 146 | -11/Scrapyard | Entered Materials 307 | -10/Materials | Build established: Mutant 334 | -10/Materials | Discovered new exit (range 16) 371 | -10/Materials | Entered another Materials area 371 | -9/Materials | Evolved 2 slots: Power x1, Weapon x1 736 | -9/Materials | Lost 8 parts (2p3n1u2w) 739 | -9/Materials | Core integrity fell below 50% 801 | -9/Materials | Discovered new exit (range 15) 803 | -9/Materials | Core integrity fell below 20% 816 | -9/Materials | Entered Storage 827 | -9/Storage | Met a pair of Derelict thieves 843 | -9/Storage | Lost 6 parts (1p2n1u2w) 904 | -9/Storage | Destroyed by G-34 Mercenary with Small Laser Last Messages --------------- 00837_ ZE-7KB(g): "So much for stealth, let's take what we have and get out of here before it's too late." 00838_ Extracted 50 matter. 00838_ Acquired Sml. Matter Pod. 00857_ Connecting with Door Terminal... 00857_ Current location identified: Storage 00857_ ALERT: Suspicious activity at Terminal S008. Dispatching Investigation squad. 00875_ O-16 Technician: "IFF HANDSHAKE FAILED. SECURING TERMINAL." 00878_ O-16 Technician uses terminal to summon reinforcements. 00878_ ALERT: Hostiles spotted, dispatching reinforcements to Terminal S016. 00878_ O-16 Technician locks terminal. 00878_ K-01 Serf collects debris. 00891_ G-34 Mercenary destroyed. 00904_ C-30 ARC bursts open, deploying its payload. 00904_ G-47 Trooper unfolds itself. 00904_ G-34 Mercenary unfolds itself. 00904_ M-13 Machinist unfolds itself. 00904_ Sml. Matter Pod destroyed. Map ----- +----------------------------------------------------+ | | | ?????????????????????????????????????? | | ?????????????????????????????????????? | | ?????????????????????????????????????? | | ?????????????????????????????????????? | | ????#####????????????????????????????? | | ????# #????????????????????????????? | | ????# #########????????????????????? | | ????# # # **#????????????????????? | | ????# # " #????????????????????? | | ????# # #????????????????????? | | ????# + " #????????????????????? | | ????# ##T# ** #????????????????????? | | ????# #### * *#????????????????????? | | ????# #??######????????????????????? | | ????# #????????????????????????????? | | ????# #????????????????????????????? | | ????# #????????????????????????????? | | ????# #????????????????????????????? | | ????# #????????????????????????????? | | ????# #????????????????#######?????? | | ????# #????????????????#"""""#?????? | | ????# #####+############""T""####### | | ????# a %o= | | ????# m gg %! | | ????# g@g | | ????#########g######################## | | ???????????? gC ?????????????????????? | | ???????????? ???????????????????? | | ??????????? ? ??????????????????? | | ??????????? k ?? #????????????????? | | ?????????? ?? #????????????????? | | ??????????#######????????????????????? | | ?????????????????????????????????????? | | ?????????????????????????????????????? | | ?????????????????????????????????????? | | ?????????????????????????????????????? | | ?????????????????????????????????????? | | ?????????????????????????????????????? | | ?????????????????????????????????????? | | ?????????????????????????????????????? | | ?????????????????????????????????????? | | ?????????????????????????????????????? | | ?????????????????????????????????????? | | ?????????????????????????????????????? | | ?????????????????????????????????????? | | ?????????????????????????????????????? | | ?????????????????????????????????????? | | ?????????????????????????????????????? | | ?????????????????????????????????????? | +----------------------------------------------------+ Best States ------------- Heat Dissipation 38 Energy Generation 23 Energy Capacity 460 Matter Stores 209 Matter Capacity 350 Sight Range 16 Terrain Scan Density 10 ECM Strength 1 Armor Coverage 150 Evasion (%) 44 Recoil Reduction 2 Item Schematics ----------------- None Robot Schematics ------------------ None Fabricated ------------ Nothing Alien Tech Used ----------------- None Achievements -------------- Everything Is Under Control Fist Fight Shopping List Challenges ------------ None Game ------ Seed PlasmaOmegaCleaver Manual? 0 Play Time 00:12:36 Cumulative 13.7 hours Start 2021.10.11 @ 23:36:24 End 2021.10.11 @ 23:47:53 Sessions 1 Manual Loads 0 Difficulty Rogue Special Mode None Game No. 45 Rogue 45 Adventurer 0 Explorer 0 Win Type - Total 0 Types 0/0/0/0/0/0/0/0/0 Lore% 4 Gallery% 17 Achievement% 9 Wizard Run 0 Options --------- ASCII 0 Keyboard 0 Movement Numpad Keybinds 0 Fullscreen 1 Font 18/SmallcapsGlow Map View 76x50 Tactical HUD 1 Map Filters NONE Filters NONE Steam 1 RUN: 1f6cb45a-8c55-4f5c-bec5-4c5fed3c4170